bitfinex-derivatives/quotes_ETHF0:USTF0_20210703
["timestamp","ask_amount","ask_price","bid_price","bid_amount"]
[1625305066008,2.20527,2203.8,2202.9,1.0]
[1625305066155,2.20527,2203.8,2202.2,49.63381901]
[1625305066758,2.20527,2203.8,2202.3,1.33263116]
[1625305067106,2.20527,2203.3,2203.1,2.20527]
[1625305067207,4.91387,2203.3,2203.1,2.20527]
[1625305069112,2.20527,2203.2,2203.1,2.20527]
[1625305069212,2.20527,2203.2,2202.0,1.3329262]
[1625305069362,2.20527,2203.2,2202.0,2.3329262]
[1625305069464,2.20527,2203.2,2202.0,1.3329262]
[1625305069863,2.20527,2203.2,2202.2,43.9282]
[1625305070164,2.20527,2203.2,2202.0,1.3329262]
[1625305070714,42.83807,2203.2,2202.0,1.3329262]
[1625305071126,2.20527,2202.9,2202.7,2.20527]
[1625305074138,2.20527,2203.2,2202.7,2.20527]
[1625305075304,2.20527,2203.2,2203.1,2.20527]
[1625305076909,55.26227,2203.2,2203.1,2.20527]
[1625305077109,2.20527,2203.2,2203.1,2.20527]
[1625305083220,15.5652,2203.9,2203.8,4.41054]
[1625305083221,17.77047,2203.9,2203.8,4.41054]
[1625305083322,17.77047,2203.9,2203.8,7.79484]
[1625305085074,55.88037,2203.9,2203.8,7.79484]
[1625305085980,17.77047,2203.9,2203.8,7.79484]
[1625305089042,2.20527,2203.9,2203.8,7.79484]
[1625305089799,7e-05,2203.9,2203.8,7.79484]
[1625305089944,1.3281319,2205.0,2203.8,7.79484]
[1625305090444,4.45250874,2205.4,2203.8,7.79484]
[1625305090445,14.3746,2205.2,2204.7,53.5627]
[1625305090546,14.3746,2205.2,2204.7,56.0343]
[1625305091298,14.3746,2205.2,2205.1,4.41054]
[1625305091597,2.20527,2205.3,2205.1,4.41054]
[1625305091701,2.20527,2205.6,2205.1,4.41054]
[1625305092449,2.20527,2205.6,2205.3,54.6989]
[1625305092598,2.20527,2205.6,2205.3,57.9074]
[1625305092699,1.33090149,2206.2,2205.3,57.9074]
[1625305092951,14.7212,2206.5,2205.3,57.9074]
[1625305093301,2.20527,2206.4,2206.3,2.20527]
[1625305095712,4.90717,2206.4,2206.3,2.20527]
[1625305095812,4.90717,2206.4,2204.8,1.0]
[1625305095912,4.90717,2206.4,2204.4,5.9133]
[1625305096062,4.90717,2206.4,2204.4,5.0]
[1625305096212,55.7174,2205.9,2204.4,5.0]
[1625305096312,59.4521,2205.9,2204.4,5.0]
[1625305096563,59.4521,2205.9,2204.5,16.547146]
[1625305097117,3.7347,2205.9,2204.4,0.9056]
[1625305097268,3.7347,2205.9,2204.5,5.0]
[1625305097366,3.7347,2205.9,2205.8,4.41054]
[1625305098768,4.90717,2206.4,2205.8,4.41054]
[1625305099323,4.90717,2206.4,2206.3,2.20527]
[1625305099619,50.15887,2206.4,2206.3,2.20527]
[1625305103179,50.15887,2206.4,2205.8,2.20527]
[1625305103280,5.0,2206.3,2205.8,2.20527]
[1625305103429,7.31834,2205.9,2205.8,2.20527]
[1625305103734,7.31834,2205.9,2204.1,1.0]
[1625305103880,7.31834,2205.9,2203.9,40.5093]
[1625305104584,7.31834,2205.9,2203.9,41.5093]
[1625305104685,7.31834,2205.9,2203.9,40.5093]
[1625305105433,2.20527,2204.9,2204.6,2.20527]
[1625305109452,2.20527,2205.1,2204.7,2.20527]
[1625305111415,2.20527,2204.8,2204.7,2.20527]
[1625305112723,2.20527,2205.1,2204.7,2.20527]
[1625305113426,2.20527,2205.1,2205.0,2.20527]
[1625305116579,2.20527,2205.1,2205.0,5.59787]
[1625305127111,3.10967,2205.1,2205.0,5.59787]
[1625305127623,0.9044,2205.1,2205.0,5.59787]
[1625305127873,0.0055,2205.1,2205.0,5.59787]
[1625305127974,1.0,2206.2,2205.0,5.59787]
[1625305128125,16.05067473,2206.5,2205.0,5.59787]
[1625305128375,14.7212,2206.5,2205.0,5.59787]
[1625305128673,14.7212,2206.5,2205.7,40.7924]
[1625305128777,14.7212,2206.5,2205.7,43.0722]
[1625305129027,15.6286,2206.5,2205.7,43.0722]
[1625305129226,14.7212,2206.5,2205.7,43.0722]
[1625305129527,2.20527,2206.3,2206.2,2.20527]
[1625305131326,2.20527,2206.3,2206.0,2.20527]
[1625305131580,2.20527,2206.1,2206.0,2.20527]
[1625305136701,48.53807,2206.1,2206.0,2.20527]
[1625305138654,2.20527,2206.1,2206.0,2.20527]
[1625305139356,2.20527,2206.1,2205.7,2.20527]
[1625305139607,2.20527,2205.8,2205.7,2.20527]
[1625305142562,2.20527,2206.1,2205.7,2.20527]
[1625305143717,2.20527,2206.1,2206.0,2.20527]
[1625305145784,2.20527,2206.1,2206.0,5.57147]
[1625305145984,14.7212,2206.5,2206.0,5.57147]
[1625305146088,1.0,2207.0,2206.0,5.57147]
[1625305146189,1.0,2207.7,2206.0,5.57147]
[1625305146289,4.24881477,2207.9,2206.0,5.57147]
[1625305146388,1.85926549,2207.3,2206.0,5.57147]
[1625305146639,15.6568,2207.5,2206.0,5.57147]
[1625305147038,15.6568,2207.5,2206.7,41.5902]
[1625305147140,15.6568,2207.5,2206.7,45.0943]
[1625305147644,15.6568,2207.5,2207.4,4.41054]
[1625305147842,15.6568,2207.5,2207.4,7.30114]
[1625305147992,1.32761969,2208.1,2207.4,7.30114]
[1625305148143,1.32748825,2208.4,2207.4,7.30114]
[1625305148947,1.32669865,2208.5,2207.4,7.30114]
[1625305149246,1.32667623,2208.6,2207.4,7.30114]
[1625305149607,1.32667623,2208.6,2207.5,41.2547]
[1625305149760,2.20527,2208.4,2208.3,2.20527]
[1625305150357,3.11177,2208.4,2208.3,2.20527]
[1625305150509,2.20527,2208.4,2206.7,45.0943]
[1625305150608,56.2953,2208.2,2206.7,3.5041]
[1625305151658,56.2953,2208.2,2208.1,2.20527]
[1625305152212,56.2953,2208.2,2208.0,2.20527]
[1625305152864,56.2953,2208.2,2206.7,3.5041]
[1625305152962,56.2953,2208.2,2205.2,1.32511074]
[1625305152963,60.6504,2208.2,2205.2,1.32511074]
[1625305153061,60.6504,2208.2,2205.9,15.587]
[1625305153462,40.346,2207.4,2205.9,15.587]
[1625305153615,40.346,2207.4,2205.9,14.587]
[1625305153616,43.5255,2207.4,2205.9,14.587]
[1625305153714,45.73077,2207.4,2207.2,2.20527]
[1625305153814,5.38477,2207.4,2207.2,2.20527]
[1625305155671,5.38477,2207.4,2207.3,2.20527]
[1625305155770,2.20527,2207.4,2207.3,2.20527]
[1625305157077,45.53547,2207.4,2207.3,2.20527]
[1625305158235,2.20527,2207.4,2207.3,2.20527]
[1625305160190,41.6075,2208.3,2207.3,2.20527]
[1625305161796,2.20527,2207.7,2207.6,2.20527]
[1625305162498,2.20527,2207.7,2207.3,2.20527]
[1625305162899,48.5212,2207.6,2207.3,2.20527]
[1625305163853,4.41054,2207.7,2207.3,2.20527]
[1625305163952,46.6075,2208.3,2207.3,2.20527]
[1625305165002,41.6075,2208.3,2207.3,2.20527]
[1625305165353,14.7291,2208.6,2207.3,2.20527]
[1625305165754,16.93437,2208.6,2208.5,2.20527]
[1625305166055,16.93437,2208.6,2208.5,1.13185384]
[1625305167809,19.13964,2208.6,2208.5,1.13185384]
[1625305177094,14.7291,2208.6,2208.5,1.13185384]
[1625305177193,14.7291,2208.6,2208.5,4.35015384]
[1625305177292,1.32567296,2209.4,2208.5,4.35015384]
[1625305177498,2.65130918,2209.6,2208.5,4.35015384]
[1625305177499,1.32562094,2209.6,2208.5,4.35015384]
[1625305177795,2.20527,2209.0,2208.9,2.20527]
[1625305178396,52.0322,2209.5,2208.9,2.20527]
[1625305179803,2.20527,2209.0,2208.9,2.20527]
[1625305182009,2.20527,2209.2,2208.9,2.20527]
[1625305183818,2.20527,2209.2,2209.1,2.20527]
[1625305188527,2.20527,2209.2,2207.9,1.0]
[1625305188627,5.67147,2209.2,2207.3,1.0]
[1625305188730,5.67147,2209.2,2207.2,14.0986]
[1625305188877,5.67147,2209.2,2207.1,0.9074]
[1625305188977,5.67147,2209.2,2206.6,5.0]
[1625305189080,47.9918,2208.2,2206.6,5.0]
[1625305189186,3.603,2208.3,2206.6,5.0]
[1625305189630,3.603,2208.3,2207.5,51.0369]
[1625305189877,3.603,2208.3,2208.2,4.41054]
[1625305190180,2.20527,2208.7,2208.2,4.41054]
[1625305191930,4.68707,2208.3,2208.2,4.41054]
[1625305192280,4.68707,2208.3,2207.1,1.0]
[1625305192382,4.68707,2208.3,2206.3,54.0438]
[1625305192383,44.117,2208.0,2206.3,54.0438]
[1625305192530,44.117,2208.0,2206.3,53.1462]
[1625305192631,5.68707,2208.3,2206.3,53.1462]
[1625305192779,4.68707,2208.3,2206.3,53.1462]
[1625305192981,4.68707,2208.3,2206.4,16.33379]
[1625305193185,46.3119,2208.0,2206.4,16.33379]
[1625305193431,46.3119,2208.0,2205.8,15.0545]
[1625305193531,46.3119,2208.0,2206.3,0.9067]
[1625305193632,46.3119,2208.0,2205.8,15.0545]
[1625305193932,46.3119,2208.0,2207.8,2.20527]
[1625305195887,2.20527,2207.9,2207.8,2.20527]
[1625305197498,2.20527,2207.9,2206.3,1.0]
[1625305197601,2.20527,2207.9,2203.3,6.986]
[1625305197702,2.20527,2207.9,2205.6,1.0]
[1625305197949,2.20527,2207.3,2207.2,2.20527]
[1625305198050,4.54377,2207.3,2207.2,2.20527]
[1625305200915,2.20527,2207.3,2207.2,2.20527]
[1625305202172,5.84597,2207.3,2207.2,2.20527]
[1625305209084,2.20527,2207.3,2207.2,2.20527]
[1625305209384,46.3119,2208.0,2207.2,2.20527]
[1625305209483,15.6597,2208.2,2207.2,2.20527]
[1625305209936,2.20527,2207.8,2207.7,2.20527]
[1625305212038,2.20527,2207.8,2207.7,4.41054]
[1625305213392,15.6597,2208.2,2207.7,4.41054]
[1625305213994,15.6597,2208.2,2208.1,2.20527]
[1625305214743,15.6597,2208.2,2208.1,5.35857]
[1625305216817,2.20527,2208.3,2208.1,5.35857]
[1625305218018,2.20527,2208.3,2208.2,2.20527]
[1625305219371,2.20527,2208.5,2208.2,2.20527]
[1625305219372,1.0,2209.3,2208.2,2.20527]
[1625305219473,1.32865564,2209.4,2208.2,2.20527]
[1625305219820,15.2497,2209.5,2208.2,2.20527]
[1625305220028,2.20527,2209.2,2209.0,2.20527]
[1625305221385,2.20527,2209.2,2208.7,2.20527]
[1625305222085,2.20527,2208.8,2208.7,2.20527]
[1625305224437,5.19147,2208.8,2208.7,2.20527]
[1625305224637,5.19147,2208.8,2206.9,14.4864]
[1625305224736,5.19147,2208.8,2207.0,16.8181]
[1625305224839,5.19147,2208.8,2207.0,1.0]
[1625305225039,41.864,2208.1,2207.0,1.0]
[1625305225138,45.3089,2208.1,2206.7,1.32319484]
[1625305225242,45.3089,2208.1,2206.6,1.32328855]
[1625305225340,45.3089,2208.1,2206.7,0.20139665]
[1625305225741,45.3089,2208.1,2206.6,0.20116619]
[1625305225842,3.4449,2208.1,2206.6,0.20116619]
[1625305226043,5.65017,2208.1,2208.0,2.20527]
[1625305226445,3.4449,2208.1,2208.0,2.20527]
[1625305227660,14.7453,2208.6,2208.0,2.20527]
[1625305228062,2.20527,2208.5,2208.3,2.20527]
[1625305230063,4.41054,2208.5,2208.3,2.20527]
[1625305233223,16.077351,2208.6,2208.3,2.20527]
[1625305233320,16.077351,2208.6,2208.3,5.38677]
[1625305233573,14.7453,2208.6,2208.3,5.38677]
[1625305233772,14.7453,2208.6,2208.3,48.04057]
[1625305234120,14.7453,2208.6,2208.5,2.20527]
[1625305235521,61.8513,2208.6,2208.5,2.20527]
[1625305235673,63.18510787,2208.6,2208.5,2.20527]
[1625305235773,16.07910787,2208.6,2208.5,2.20527]
[1625305235871,16.07910787,2208.6,2208.3,2.20527]
[1625305236073,4.41054,2208.4,2208.3,2.20527]
[1625305251631,4e-05,2208.4,2208.3,2.20527]
[1625305251736,3.20327837,2208.9,2208.3,3.12257]
[1625305251833,0.1008908,2209.0,2208.3,11.38747]
[1625305251934,5.33905469,2209.6,2208.3,11.38747]
[1625305252082,1.45720444,2209.4,2208.3,11.38747]
[1625305252233,1.45720444,2209.4,2209.3,11.93984]
[1625305252334,6.67330879,2209.9,2209.3,11.93984]
[1625305252335,4.60366792,2209.9,2209.3,11.93984]
[1625305252433,4.27866792,2209.9,2209.3,11.93984]
[1625305252533,4.27866792,2209.9,2209.3,28.423169]
[1625305252685,4.2688988,2210.8,2209.3,28.423169]
[1625305253086,4.2688988,2210.8,2209.4,0.13397801]
[1625305253190,4.2688988,2210.8,2209.4,0.33166396]
[1625305253340,7.99241116,2212.3,2211.2,43.193]
[1625305253437,7.99241116,2212.3,2211.2,48.193]
[1625305253537,0.9006,2212.4,2211.2,48.193]
[1625305253640,0.9006,2212.4,2211.3,16.411154]
[1625305253787,0.8977,2213.0,2211.4,1.0]
[1625305253943,8.98929293,2213.2,2211.4,1.0]
[1625305253944,7.98929293,2213.2,2211.4,1.0]
[1625305254139,7.98929293,2213.2,2211.5,17.419142]
[1625305254239,2.20527,2212.8,2212.7,2.20527]
[1625305254340,7.98929293,2213.2,2212.7,2.20527]
[1625305254836,7.98929293,2213.2,2212.7,5.04447]
[1625305254939,7.98929293,2213.2,2213.1,50.6522]
[1625305255137,19.1092,2214.0,2213.1,50.6522]
[1625305255240,4.759,2214.0,2213.1,50.6522]
[1625305255889,4.759,2214.0,2212.7,6.04447]
[1625305256040,4.759,2214.0,2212.7,5.04447]
[1625305256243,2.20527,2213.8,2213.7,2.20527]
[1625305256489,2.20527,2213.8,2213.7,7e-05]
[1625305256839,2.20527,2213.8,2213.4,2.20527]
[1625305256939,2.20527,2213.8,2212.4,1.0]
[1625305257038,2.20527,2213.8,2210.1,5.0]
[1625305257141,2.20527,2213.8,2211.3,1.0]
[1625305257241,2.20527,2213.8,2210.1,5.0]
[1625305257645,2.20527,2213.8,2211.3,16.393374]
[1625305258294,2.20527,2213.2,2213.1,2.20527]
[1625305258393,2.20527,2213.2,2213.1,5.33157]
[1625305258596,5.759,2214.7,2213.1,51.93407]
[1625305258701,4.759,2214.7,2213.1,51.93407]
[1625305259197,4.759,2214.7,2213.2,16.405865]
[1625305260299,2.20527,2213.7,2213.5,2.20527]
[1625305261750,2.20527,2213.7,2213.1,2.20527]
[1625305261851,2.20527,2213.7,2211.3,1.0]
[1625305261951,2.20527,2213.7,2211.2,0.9113]
[1625305262101,2.20527,2213.7,2210.1,5.0]
[1625305262102,1.0,2213.6,2210.2,1.0]
[1625305262305,2.20527,2212.7,2212.6,2.20527]
[1625305262402,3.7146,2212.7,2212.6,2.20527]
[1625305263358,8.1219,2213.8,2212.6,2.20527]
[1625305264356,2.20527,2212.7,2211.7,3.6863]
[1625305264707,4.67317,2212.7,2211.7,3.6863]
[1625305264858,42.5785,2212.4,2211.7,3.6863]
[1625305265509,42.5785,2212.4,2210.4,14.3201]
[1625305265810,42.5785,2212.4,2209.8,1.15]
[1625305266162,47.5785,2212.4,2209.9,16.284986]
[1625305266367,2.20527,2211.6,2211.5,2.20527]
[1625305266465,4.47687,2211.6,2211.5,2.20527]
[1625305267024,4.47687,2211.6,2209.8,1.0]
[1625305267128,4.47687,2211.6,2209.3,5.9119]
[1625305267428,5.47687,2211.6,2209.3,5.9119]
[1625305267679,5.47687,2211.6,2209.4,16.343654]
[1625305267828,4.47687,2211.6,2209.5,5.0]
[1625305268080,4.47687,2211.6,2209.6,16.375335]
[1625305268279,2.20527,2211.6,2209.7,5.0]
[1625305268380,2.20527,2211.6,2211.5,2.20527]
[1625305271390,2.20527,2211.6,2210.2,1.0]
[1625305271490,2.20527,2211.6,2209.8,45.1058]
[1625305271592,2.20527,2211.6,2209.4,5.0]
[1625305271993,5.71987,2211.6,2209.5,16.341739]
[1625305272343,2.20527,2210.8,2210.5,2.20527]
[1625305272443,5.50347,2210.8,2210.5,2.20527]
[1625305273547,3.2982,2210.8,2210.5,2.20527]
[1625305273648,50.3641,2211.3,2210.5,2.20527]
[1625305274350,2.20527,2211.1,2210.8,2.20527]
[1625305276406,4.41054,2211.1,2210.8,2.20527]
[1625305276908,2.20527,2211.1,2210.8,2.20527]
[1625305278363,2.20527,2211.1,2210.9,2.20527]
[1625305278914,1.0,2212.2,2210.9,3.09667]
[1625305279069,0.8927,2214.3,2210.9,3.09667]
[1625305279166,4.759,2213.2,2211.0,16.33026]
[1625305279266,4.759,2213.2,2211.0,17.24476]
[1625305279368,1.1,2213.4,2211.1,5.0]
[1625305279464,1.1,2213.4,2211.1,8.5893]
[1625305279566,2.1,2213.4,2211.6,39.6857]
[1625305279666,2.1,2213.4,2211.6,43.0835]
[1625305279667,1.1,2213.4,2211.6,43.0835]
[1625305279916,1.1,2213.4,2211.7,16.286393]
[1625305280423,2.20527,2212.8,2212.6,2.20527]
[1625305281026,2.20527,2212.8,2212.6,1.1340196]
[1625305281885,2.20527,2212.8,2212.7,16.400596]
[1625305281988,2.20527,2212.8,2212.7,20.003696]
[1625305282937,2.20527,2213.0,2212.7,20.003696]
[1625305283188,2.20527,2213.0,2212.7,3.6031]
[1625305283588,2.20527,2213.0,2212.6,1.1340196]
[1625305284392,2.20527,2212.7,2212.6,1.1340196]
[1625305286247,2.20527,2212.7,2212.6,17.4895046]
[1625305287204,2.20527,2212.7,2212.6,1.1340196]
[1625305288905,2.20527,2212.7,2212.4,2.20527]
[1625305290458,2.20527,2212.6,2212.4,2.20527]
[1625305300254,5.30767,2212.6,2212.3,2.20527]
[1625305300356,10.30767,2212.6,2211.3,1.0]
[1625305300505,2.20527,2211.5,2211.4,2.20527]
[1625305300607,5.25397,2211.5,2209.5,1.0]
[1625305300758,1.0,2211.4,2208.9,5.0]
[1625305301308,1.0,2211.4,2209.4,16.550023]
[1625305301409,51.8493,2211.0,2209.4,16.550023]
[1625305301558,1.0,2210.9,2209.4,16.550023]
[1625305301910,1.0,2211.6,2209.5,5.0]
[1625305302167,14.6931,2212.5,2209.9,1.15]
[1625305302314,14.6931,2212.5,2210.0,5.0]
[1625305302412,56.8339,2212.4,2210.0,21.345082]
[1625305302512,16.89837,2212.5,2212.4,4.41054]
[1625305302612,4.17835433,2214.7,2212.4,8.48624]
[1625305302815,4.18736253,2215.2,2212.4,24.870111]
[1625305302918,6.0,2214.9,2212.4,24.870111]
[1625305303168,8.086,2215.0,2212.4,29.870111]
[1625305303169,1.0,2214.7,2212.4,29.870111]
[1625305303266,2.1,2214.7,2212.4,29.870111]
[1625305303365,1.0,2214.7,2212.4,29.870111]
[1625305303467,1.0,2214.7,2213.3,52.9106]
[1625305303667,1.0,2214.7,2213.3,55.9023]
[1625305303869,1.0,2214.7,2213.4,16.391851]
[1625305304470,1.0,2214.7,2214.6,2.20527]
[1625305304573,2.20527,2214.8,2214.6,6.74444]
[1625305304871,2.20527,2214.8,2214.6,23.138713]
[1625305307385,2.20527,2214.8,2214.6,18.728173]
[1625305307485,2.20527,2214.8,2212.9,0.9131]
[1625305307585,1.0,2214.7,2212.4,0.8991]
[1625305308187,1.0,2214.7,2212.5,16.370349]
[1625305308540,2.20527,2214.1,2214.0,2.20527]
[1625305308989,2.20527,2214.1,2214.0,18.57804]
[1625305310790,4.94157,2214.1,2214.0,18.57804]
[1625305311752,2.7363,2214.1,2214.0,18.57804]
[1625305312706,2.20527,2214.2,2214.0,18.57804]
[1625305314259,2.20527,2214.2,2214.0,16.37277]
[1625305314557,5.72577,2214.2,2214.1,2.20527]
[1625305314807,5.72577,2214.2,2214.1,18.50445]
[1625305315106,5.72577,2214.2,2214.1,2.20527]
[1625305315409,5.72577,2214.2,2214.1,18.686134]
[1625305321469,2.20527,2214.2,2214.1,21.336334]
[1625305321618,9.759,2215.9,2214.1,21.336334]
[1625305321724,1.0,2215.8,2214.1,21.336334]
[1625305322671,2.20527,2215.1,2215.0,2.20527]
[1625305322920,2.20527,2215.1,2215.0,1.13496073]
[1625305323040,2.20527,2215.1,2215.0,17.65351573]
[1625305324622,4.41054,2215.1,2215.0,17.65351573]
[1625305324872,4.41054,2215.1,2215.0,1.13496073]
[1625305326327,4.41054,2215.1,2214.7,2.20527]
[1625305326679,2.20527,2214.8,2214.7,2.20527]
[1625305326979,2.20527,2214.8,2214.7,18.47308]
[1625305329852,2.20527,2214.8,2214.7,2.20527]
[1625305330103,1.0,2215.1,2214.7,2.20527]
[1625305330201,18.93315587,2216.7,2214.7,2.20527]
[1625305330506,15.5203,2216.7,2214.7,2.20527]
[1625305330655,15.5203,2216.7,2214.8,16.457706]
[1625305330753,2.20527,2215.5,2215.4,2.20527]
[1625305331054,2.20527,2215.5,2215.2,2.20527]
[1625305331154,1.0,2215.4,2214.3,16.422653]
[1625305331354,1.0,2215.4,2213.7,15.316]
[1625305331454,1.0,2215.4,2213.7,14.4113]
[1625305331704,1.0,2215.4,2212.5,42.062]
[1625305331804,1.0,2215.4,2213.8,16.404996]
[1625305332009,1.0,2215.4,2213.4,5.0]
[1625305332106,1.0,2215.4,2213.2,16.259543]
[1625305332206,1.0,2215.4,2212.6,14.2673]
[1625305332507,1.0,2215.4,2213.2,16.445382]
[1625305332707,2.20527,2214.4,2214.3,2.20527]
[1625305332807,4.57467,2214.4,2214.3,2.20527]
[1625305333057,4.57467,2214.4,2214.3,18.667333]
[1625305334706,6.77994,2214.4,2214.3,18.667333]
[1625305355256,2.3694,2214.4,2214.3,18.667333]
[1625305355347,1.0,2214.8,2214.3,18.667333]
[1625305356805,2.20527,2214.4,2214.3,18.667333]
[1625305356905,5.57717,2214.4,2214.3,18.667333]
[1625305361670,5.57717,2214.4,2214.3,16.462063]
[1625305361971,5.57717,2214.4,2214.2,16.425983]
[1625305362271,5.57717,2214.4,2214.3,16.517947]
[1625305362574,5.57717,2214.4,2214.2,16.356823]
[1625305362874,5.57717,2214.4,2214.3,16.414782]
[1625305363176,5.57717,2214.4,2214.2,16.253769]
[1625305363834,5.57717,2214.4,2213.9,16.528279]
[1625305364232,6.57717,2214.4,2213.9,16.528279]
[1625305364885,2.20527,2214.0,2213.9,16.528279]
[1625305369202,1.0,2214.4,2213.9,16.528279]
[1625305369311,18.9036,2215.4,2213.9,16.528279]
[1625305369412,18.9036,2215.4,2213.9,18.936079]
[1625305369413,1.0,2215.3,2213.9,18.936079]
[1625305369759,1.0,2215.3,2214.1,49.5004]
[1625305370061,1.0,2215.3,2214.2,16.431876]
[1625305370862,1.0,2215.3,2214.0,16.265751]
[1625305370963,3.20527,2215.1,2215.0,2.20527]
[1625305371063,6.40787,2215.1,2215.0,2.20527]
[1625305372228,6.40787,2215.1,2214.8,2.20527]
[1625305372928,2.20527,2214.9,2214.8,2.20527]
[1625305373028,2.64751509,2215.8,2214.8,2.20527]
[1625305373127,3.64751509,2215.8,2214.8,2.20527]
[1625305373279,1.0,2215.8,2214.8,2.20527]
[1625305373377,1.0,2215.8,2214.9,16.414074]
[1625305374930,2.20527,2215.3,2215.2,2.20527]
[1625305375028,6.75147,2215.3,2215.2,2.20527]
[1625305375330,6.75147,2215.3,2214.8,2.20527]
[1625305375682,6.75147,2215.3,2213.2,5.0]
[1625305376229,6.75147,2215.3,2213.8,16.497848]
[1625305377043,6.80377,2214.8,2214.7,2.20527]
[1625305377584,6.80377,2214.8,2214.4,2.20527]
[1625305377682,6.80377,2214.8,2213.1,0.902]
[1625305378186,56.21797,2214.8,2213.1,0.902]
[1625305378332,56.21797,2214.8,2213.2,16.524002]
[1625305378483,56.21797,2214.8,2213.2,21.524002]
[1625305378633,6.80377,2214.8,2213.2,21.524002]
[1625305378983,6.80377,2214.8,2214.6,2.20527]
[1625305379086,5.80377,2214.8,2214.6,2.20527]
[1625305382739,5.80377,2214.8,2214.4,2.20527]
[1625305383040,2.20527,2214.5,2214.4,2.20527]
[1625305386453,4.58497,2214.5,2214.4,2.20527]
[1625305386703,4.58497,2214.5,2214.1,2.20527]
[1625305387056,2.20527,2214.2,2214.1,2.20527]
[1625305388167,1.0,2214.4,2214.1,2.20527]
[1625305388267,2.20527,2214.5,2214.1,2.20527]
[1625305391080,2.20527,2214.2,2214.1,4.41054]
[1625305393189,2.20527,2214.2,2214.1,2.20527]
[1625305393337,3.20527,2214.2,2214.1,2.20527]
[1625305393839,6.70567,2214.2,2214.1,2.20527]
[1625305394189,10.17430985,2214.2,2214.1,2.20527]
[1625305394995,9.3737354,2214.2,2214.1,2.20527]
[1625305395795,10.17429395,2214.2,2214.1,2.20527]
[1625305397651,6.70567,2214.2,2214.1,2.20527]
[1625305398959,6.70567,2214.2,2213.8,2.20527]
[1625305399108,2.20527,2213.9,2213.8,2.20527]
[1625305399210,3.20527,2213.9,2213.8,2.20527]
[1625305402733,3.20527,2213.9,2212.8,2.65538631]
[1625305403181,2.20527,2213.1,2213.0,2.20527]
[1625305403481,2.20527,2213.1,2213.0,18.491919]
[1625305404984,3.20527,2213.1,2213.0,18.491919]
[1625305405085,5.62017,2213.1,2213.0,16.286649]
[1625305405186,7.82544,2213.1,2212.8,2.65429872]
[1625305405638,40.1505,2213.0,2212.8,2.65429872]
[1625305405890,40.1505,2213.0,2212.4,2.20527]
[1625305406390,1.0,2213.0,2212.4,2.20527]
[1625305407143,2.20527,2212.5,2212.4,2.20527]
[1625305407294,2.20527,2212.6,2212.4,2.20527]
[1625305407493,2.20527,2212.6,2212.4,18.552963]
[1625305409147,2.20527,2212.5,2212.4,18.552963]
[1625305410352,2.20527,2212.6,2212.4,19.464563]
[1625305410550,2.66779548,2213.3,2212.4,18.552963]
[1625305410656,2.66779548,2213.3,2212.4,21.20705229]
[1625305410753,2.66608147,2213.8,2212.4,21.20705229]
[1625305411108,18.47400591,2214.0,2212.4,21.20705229]
[1625305411109,2.66597679,2213.9,2212.4,21.20705229]
[1625305411208,2.66597679,2213.9,2213.8,2.20527]
[1625305411411,2.66597679,2213.9,2213.8,3.09677]
[1625305411510,2.66597679,2213.9,2213.8,2.20527]
[1625305411913,2.66597679,2213.9,2213.7,2.20527]
[1625305412017,8.41048605,2214.0,2213.7,2.20527]
[1625305412166,4.87108605,2214.0,2213.7,2.20527]
[1625305412418,2.66585237,2213.9,2213.7,2.20527]
[1625305412767,4.87113871,2214.0,2213.7,2.20527]
[1625305413167,2.20527,2213.8,2213.1,2.20527]
[1625305413267,1.0,2213.7,2213.1,2.20527]
[1625305413572,2.66616276,2213.6,2213.1,2.20527]
[1625305413672,3.66616276,2213.6,2213.1,2.20527]
[1625305414321,3.66616276,2213.6,2213.2,16.438326]
[1625305414420,2.66616276,2213.6,2213.2,16.438326]
[1625305414524,3.66559065,2213.7,2213.2,16.438326]
[1625305414622,2.66559065,2213.7,2213.2,16.438326]
[1625305414921,4.8706819,2213.8,2213.2,16.438326]
[1625305415223,4.8706819,2213.8,2213.6,2.20527]
[1625305415729,2.20527,2213.8,2213.6,2.20527]
[1625305415928,2.20527,2213.8,2213.2,3.2997]
[1625305416028,3.20527,2213.8,2213.2,3.2997]
[1625305416579,5.87062431,2213.8,2213.1,2.20527]
[1625305417180,8.69012431,2213.8,2213.1,2.20527]
[1625305417280,4.41054,2213.2,2213.1,2.20527]
[1625305417432,7.60964,2213.2,2212.8,2.20527]
[1625305417531,1.0,2213.1,2212.2,17.07744555]
[1625305417781,1.0,2213.1,2212.2,2.65304555]
[1625305417882,1.0,2213.1,2212.1,1.33427932]
[1625305418083,1.0,2213.1,2212.3,16.388295]
[1625305418433,1.0,2213.1,2212.2,16.449197]
[1625305419237,2.20527,2212.8,2212.6,2.20527]
[1625305423250,2.20527,2212.7,2212.6,2.20527]
[1625305424902,2.20527,2212.7,2211.8,2.6544078]
[1625305425002,1.0,2212.6,2211.8,2.6544078]
[1625305425102,1.0,2212.6,2211.7,2.65667347]
[1625305425252,2.20527,2212.3,2212.2,2.20527]
[1625305426202,2.20527,2212.3,2212.2,18.641538]
[1625305434440,2.20527,2212.3,2212.2,21.740438]
[1625305439702,3.20527,2212.3,2212.2,21.740438]